[Event "3rd VIZAG GM-Open 2022"]
[Site "Visakapatnam"]
[Date "2022.06.13"]
[Round "3.1"]
[White "Gusain, Himal"]
[Black "Amonatov, Farrukh"]
[Result "0-1"]
[ECO "E68"]
[WhiteElo "2396"]
[BlackElo "2622"]
[Annotator "TA"]
[PlyCount "102"]
[EventDate "2022.06.13"]
[EventType "swiss"]
[EventCountry "IND"]
[SourceTitle "playchess.com"]
[Source "ChessBase"]
[SourceQuality "1"]
[TimeControl "5400+30"]

{[%evp 26,102,36,6,18,-5,28,7,33,13,82,25,72,27,20,0,0,-29,-26,-34,-38,-53,-33,-64,-32,-37,-14,-25,-10,-33,-22,-14,0,0,0,-95,-90,-73,-86,-155,-165,-206,-216,-279,-262,-237,-204,-187,-199,-210,-195,-236,-232,-204,-166,-160,-160,-142,-125,-91,-45,-178,-78,-182,-39,-530,-522,-529,-514,-568,-562,-496,-550,-757,-830,-5189,-5065,-2155,-1861]} 1. d4 {[%emt 0:04:55]} Nf6 {[%emt 0:00:18]} 2. c4 {[%emt 0:00:21]} g6 {[%emt 0:00:07]} 3. Nf3 {[%emt 0:00:07]} Bg7 {[%emt 0:00:06]} 4. g3 {[%emt 0:00:08]} O-O {[%emt 0:00:08]} 5. Bg2 {[%emt 0:00:06]} d6 {[%emt 0:00:05]} 6. O-O {[%emt 0:00:07]} Nbd7 {[%emt 0:00:05]} 7. Nc3 {[%emt 0:00:07]} e5 {[%emt 0:00:07]} 8. Qc2 {[%emt 0:00:05]} c6 {[%emt 0:01:01]} 9. Rd1 {[%emt 0:00:21]} Qe7 {[%emt 0:00:09]} 10. b3 {[%emt 0:00:17]} Re8 {[%emt 0:03:21]} 11. e4 {[%emt 0:00:08]} exd4 {[%emt 0:03:34]} 12. Nxd4 {[%emt 0:00:07]} Nc5 {[%emt 0:00:05]} 13. f3 {[%emt 0:00:34]} a5 {[%emt 0:04:30]} 14. Rb1 {[%emt 0:00:05]} Nfd7 {[%emt 0:01:56][%cal Of7f5] E68: King's Indian: Fianchetto: 6...Nbd7 7 0-0 e5 8 e4.} 15. a3 {[%emt 0:00:33]} h5 {[%emt 0:03:44]} 16. h3 {[%emt 0:00:11] [#]} Ne6 $146 {[%emt 0:06:30] The position is equal.} ({Predecessor:} 16... Nb6 17. a4 Nbd7 18. Nde2 Ne5 19. f4 Ned7 20. Ba3 Bf8 21. Nd4 Na6 22. Qd2 Ndc5 {0-1 (51) Stajcic,N (2320)-Mochalov,E (2460) Kobanya 1992}) 17. Be3 {[%emt 0:24:06]} Ne5 {[%emt 0:25:03]} (17... Ndc5 $11 {keeps the balance.}) 18. Nde2 {[%emt 0:13:46]} (18. f4 $16) 18... h4 {[%emt 0:04:54]} (18... f5 $1 $11) 19. g4 {[%emt 0:00:40]} (19. f4 {is interesting.} hxg3 20. fxe5 Bxe5 21. Na4) 19... g5 {[%emt 0:01:07]} 20. Na4 {[%emt 0:01:12]} Ng6 {[%emt 0:02:08]} 21. Qd2 {[%emt 0:04:24]} Be5 {[%emt 0:00:24]} 22. Nd4 {[%emt 0:00:06]} Nxd4 {[%emt 0:01:48]} 23. Bxd4 {[%emt 0:00:18]} Be6 {[%emt 0:01:54]} 24. Nc3 {[%emt 0:03:25] Prevents b5.} Qf6 {[%emt 0:13:17]} 25. a4 {[%emt 0:01:43]} Rad8 {[%emt 0:02:17]} 26. Ne2 {[%emt 0:00:52]} d5 {[%emt 0:03:39] Strongly threatening ...dxe4.} 27. exd5 {[%emt 0:01:55]} cxd5 {[%emt 0:00:08]} 28. c5 {[%emt 0:00:02]} Bd7 {[%emt 0:22:05]} 29. Be3 {[%emt 0:03:42]} (29. Qxa5 $2 Nf4 30. Nxf4 Bxd4+ 31. Kh1 Qxf4 $19) 29... Nf4 {[%emt 0:00:00]} 30. Nxf4 {[%emt 0:00:44]} (30. Bxf4 $11 Bxf4 31. Nxf4 gxf4 32. Qxa5 (32. Qxd5 Bc6 $11)) 30... gxf4 $17 {[%emt 0:00:00]} 31. Bf2 {[%emt 0:00:03]} Bc6 {[%emt 0:00:00]} 32. Qd3 {[%emt 0:07:50]} ({Don't blunder} 32. Qxa5 $2 Bc3 33. Qc7 Rd7 $19) (32. Rbc1 $142) 32... Bc3 $1 {[%emt 0:00:00]} 33. g5 {[%emt 0:01:02]} ({Don't go for} 33. Bxh4 $2 Qxh4 34. Qc2 d4 $19) 33... Qg7 {[%emt 0:00:00]} 34. Bxh4 {[%emt 0:01:18]} d4 $1 {[%emt 0:00:00]} 35. Qf5 {[%emt 0:02:38]} Qe5 {[%emt 0:00:00]} 36. Qxe5 {[%emt 0:06:03]} Rxe5 {[%emt 0:00:00]} 37. g6 {[%emt 0:03:31] [#]} Rd7 {[%emt 0:00:00]} 38. gxf7+ {[%emt 0:00:39]} Kxf7 {[%emt 0:00:00]} 39. Be1 {[%emt 0:00:39]} Rxe1+ {[%emt 0:03:24]} ({And not} 39... Rxc5 40. Rdc1) 40. Rxe1 {[%emt 0:00:05]} Bxe1 {[%emt 0:00:05]} 41. Rxe1 $19 {[%emt 0:00:10][%mdl 4096] Endgame KRB-KRB} Bd5 {[%emt 0:00:03]} 42. Bf1 {[%emt 0:03:35]} Bxf3 {[%emt 0:00:04]} (42... Bxb3 $17 {aiming for ...d3.} 43. Bb5 Rd8) 43. Bb5 {[%emt 0:06:20] [#]} (43. Kf2 $15 Bd5 44. h4) 43... Rd8 {[%emt 0:01:18]} (43... Re7 $1 $19 {[%cal Re7e1] is more deadly.} 44. Rc1 Kf6) 44. Bc4+ {[%emt 0:07:53]} (44. Kf2 $17 {was called for.} Bd5 45. Ke2) 44... Kf6 {[%emt 0:00:08]} ({Black should play} 44... Bd5 $19 {Threatens to win with ...Bxc4.} 45. Bxd5+ Rxd5) 45. Rf1 $2 {[%emt 0:00:46][%mdl 8192]} (45. Re6+ $15 Kf5 46. Kf2) 45... Be4 {[%emt 0:00:05] Black is clearly winning.} 46. Rxf4+ {[%emt 0:01:46]} Ke5 {[%emt 0:00:01]} 47. Rf2 {[%emt 0:00:06]} d3 {[%emt 0:00:05]} 48. Rd2 {[%emt 0:00:04]} Kd4 {[%emt 0:00:13]} 49. Kf2 {[%emt 0:00:33]} Kc3 {[%emt 0:00:57]} 50. Ke3 {[%emt 0:00:16]} Re8 {[%emt 0:00:05] ...Bc6+ is the strong threat.} 51. Rd1 {[%emt 0:02:39]} Bd5+ {[%emt 0:00:59] Weighted Error Value: White=0.78/Black=0.19 (very precise)} 0-1

[Event "3rd VIZAG GM-Open 2022"]
[Site "Visakapatnam"]
[Date "2022.06.13"]
[Round "3.2"]
[White "Paichadze, Luka"]
[Black "Subhayan Kundu"]
[Result "1/2-1/2"]
[ECO "B53"]
[WhiteElo "2567"]
[BlackElo "2323"]
[Annotator "TA"]
[PlyCount "55"]
[EventDate "2022.06.13"]
[EventType "swiss"]
[EventCountry "IND"]
[SourceTitle "playchess.com"]
[Source "ChessBase"]
[SourceQuality "1"]
[TimeControl "5400+30"]

{[%evp 19,55,13,0,19,43,34,29,42,53,40,45,0,0,7,18,0,0,16,4,0,0,0,0,0,0,0,0,0,0,0,0,0,0,0,0,0,0,0]} 1. e4 {[%emt 0:00:41]} c5 {[%emt 0:00:14]} 2. Nf3 {[%emt 0:00:05]} d6 {[%emt 0:00:21]} 3. d4 {[%emt 0:00:05]} cxd4 {[%emt 0:00:06]} 4. Qxd4 {[%emt 0:00:06]} Nf6 {[%emt 0:00:17]} 5. Bg5 {[%emt 0:00:11]} Nc6 {[%emt 0:00:36]} 6. Bb5 {[%emt 0:00:04]} Bd7 {[%emt 0:00:12]} 7. Qd3 {[%emt 0:00:10]} e6 {[%emt 0:00:12]} 8. Nc3 {[%emt 0:00:52]} a6 {[%emt 0:00:12]} 9. Bxc6 {[%emt 0:00:07]} Bxc6 {[%emt 0:00:02]} 10. O-O-O {[%emt 0:00:57]} Be7 {[%emt 0:00:10]} 11. Nd4 {[%emt 0:01:19] B53: Sicilian: 2...d6: Lines with Qxd4.} Bd7 {[%emt 0:07:13]} 12. f4 {[%emt 0:09:24]} h6 {[%emt 0:08:22]} 13. Bh4 {[%emt 0:11:52] [#] White has an edge.} g5 $146 {[%emt 0:07:59]} ({Predecessor:} 13... b5 14. e5 dxe5 15. fxe5 Ng4 16. Bxe7 Qxe7 17. Qe4 Qg5+ 18. Kb1 Rd8 19. Nf3 Qg6 {½-½ (30) Draghici Flutur,G (2164)-Fernandez Lago,D (2000) Linares 2014}) 14. fxg5 {[%emt 0:01:06]} Nh5 {[%emt 0:04:18]} 15. g4 {[%emt 0:19:54]} Nf4 {[%emt 0:07:05] The position is equal.} ({Resist} 15... Bxg5+ 16. Bxg5 Qxg5+ 17. Kb1 $16) 16. Qf3 {[%emt 0:01:40]} hxg5 {[%emt 0:00:19]} 17. Bg3 {[%emt 0:00:05]} Ng6 {[%emt 0:01:29] Inhibits h4.} 18. Rhf1 {[%emt 0:01:55][%csl Gf1][%cal Rf3f7]} Rh7 {[%emt 0:03:04] [#]} 19. Nf5 $1 {[%emt 0:15:55]} exf5 {[%emt 0:00:50]} 20. exf5 {[%emt 0:00:19]} Ne5 {[%emt 0:12:20]} 21. Bxe5 {[%emt 0:00:23]} dxe5 {[%emt 0:00:02]} 22. f6 {[%emt 0:00:53]} Bxf6 {[%emt 0:00:49] Strongly threatening ...Bh8.} 23. Qxb7 {[%emt 0:11:29]} Rb8 {[%emt 0:03:22]} 24. Qa7 {[%emt 0:00:06][%cal Of1f6] [#] Hoping for Rxf6!} Ra8 {[%emt 0:03:58]} 25. Qb7 {[%emt 0:00:27]} Rb8 {[%emt 0:00:10]} 26. Qa7 {[%emt 0:01:34][%cal Of1f6] Rxf6! is the strong threat.} Ra8 {[%emt 0:00:06]} 27. Qb7 {[%emt 0:00:04]} Rb8 {[%emt 0:01:29]} 28. Qa7 $1 {[%emt 0:00:30] Weighted Error Value: White=0.03 (flawless) /Black=0.02 (flawless)} 1/2-1/2

[Event "3rd VIZAG GM-Open 2022"]
[Site "Visakapatnam"]
[Date "2022.06.13"]
[Round "3.3"]
[White "Abdyjapar, Asyl"]
[Black "Harsha Bharathakoti"]
[Result "1/2-1/2"]
[ECO "A29"]
[WhiteElo "2346"]
[BlackElo "2547"]
[Annotator "TA"]
[PlyCount "105"]
[EventDate "2022.06.13"]
[EventType "swiss"]
[EventCountry "IND"]
[SourceTitle "playchess.com"]
[Source "ChessBase"]
[SourceQuality "1"]
[TimeControl "5400+30"]

{[%evp 23,105,0,1,0,0,0,0,0,19,0,9,0,25,44,30,25,49,40,40,40,44,41,42,35,52,38,25,39,22,6,6,6,4,13,10,23,45,37,49,41,52,28,43,2,46,40,59,57,60,-28,0,0,0,0,0,-16,252,62,52,89,83,-16,30,0,0,0,-50,-80,-113,-93,-97,-75,-34,-36,-17,-136,0,0,0,-132,0,0,0,-97]} 1. c4 {[%emt 0:00:09]} e5 {[%emt 0:01:37]} 2. g3 {[%emt 0:00:13]} Nf6 {[%emt 0:01:52]} 3. Bg2 {[%emt 0:00:17]} d5 {[%emt 0:02:56]} 4. cxd5 {[%emt 0:01:29]} Nxd5 {[%emt 0:00:05]} 5. Nf3 {[%emt 0:00:16]} Nc6 {[%emt 0:00:19]} 6. O-O {[%emt 0:00:05]} Nb6 {[%emt 0:10:37]} 7. d3 {[%emt 0:02:24]} Be7 {[%emt 0:00:18]} 8. a3 {[%emt 0:01:32]} O-O {[%emt 0:12:37]} 9. Nc3 {[%emt 0:02:05]} Re8 {[%emt 0:02:49]} 10. b4 {[%emt 0:01:36]} Bf8 {[%emt 0:00:06]} 11. Bb2 {[%emt 0:00:24]} a5 {[%emt 0:09:41]} 12. b5 {[%emt 0:01:30]} Nd4 {[%emt 0:00:05]} 13. e3 {[%emt 0:04:11] A29: English Opening: Four Knights Variation with 4 g3.} Nxf3+ {[%emt 0:02:54]} 14. Bxf3 {[%emt 0:02:32]} a4 $1 {[%emt 0:02:44] 14...a4 scores better than 14...Rb8.} 15. Rc1 {[%emt 0:02:35]} Ra7 {[%emt 0:07:46]} 16. Qc2 {[%emt 0:03:08]} Ra5 {[%emt 0:11:15]} 17. Qe2 {[%emt 0:05:34]} Bd6 {[%emt 0:03:33]} 18. Rfd1 {[%emt 0:02:43]} Qe7 {[%emt 0:02:39]} 19. Qd2 {[%emt 0:01:35] Hoping for Nd5.} Ra7 {[%emt 0:11:12]} 20. Ne4 {[%emt 0:02:55]} Be6 $1 {[%emt 0:00:33]} 21. Nxd6 {[%emt 0:01:11]} cxd6 {[%emt 0:00:04] [#]} 22. e4 $146 {[%emt 0:06:05]} ({Predecessor:} 22. Rc3 Qd7 23. Ba1 Qxb5 24. d4 Qa5 25. dxe5 dxe5 26. Qc1 Nd7 27. Rc8 Ra8 28. Rc7 Nf6 29. Rc5 {½-½ (41) Keller,T (2276)-Gikas,A (2123) Germany 2011}) 22... Bb3 {[%emt 0:03:29]} 23. Re1 {[%emt 0:00:34]} Raa8 {[%emt 0:01:26]} 24. Qb4 {[%emt 0:03:45]} Rec8 {[%emt 0:03:33]} 25. Bg4 {[%emt 0:05:23]} Rc5 {[%emt 0:01:23]} 26. d4 {[%emt 0:03:25]} Rc4 {[%emt 0:00:07]} 27. Rxc4 {[%emt 0:01:17]} Nxc4 {[%emt 0:00:03]} 28. Ba1 {[%emt 0:00:44]} exd4 {[%emt 0:03:57]} 29. Bxd4 {[%emt 0:00:14]} Ne5 {[%emt 0:00:03]} 30. Be2 $36 {[%emt 0:01:48][%mdl 2048] White fights for an advantage.} Rc8 {[%emt 0:00:03][%cal Oc8c4]} 31. f4 {[%emt 0:01:07]} Ng6 {[%emt 0:01:01][%cal Be5g6,Bg6e7,Be7c6][%mdl 32]} 32. Bd3 {[%emt 0:01:28]} Qd7 {[%emt 0:02:27][%cal Og6f4]} 33. Be3 {[%emt 0:00:53]} d5 {[%emt 0:01:31]} 34. Qd4 {[%emt 0:01:25]} Ne7 {[%emt 0:00:33]} 35. Bd2 {[%emt 0:00:31] Black must now prevent Bc3.} Bc4 $1 {[%emt 0:01:54]} 36. Bb1 {[%emt 0:04:32]} (36. Bc3 $14 f6 37. e5 Bxd3 38. Qxd3) 36... Bxb5 {[%emt 0:00:44]} (36... Qxb5 $5 {[%cal Re7c6]} 37. Bc3 f6 $11) 37. Bc3 {[%emt 0:00:57][%csl Gc3][%cal Rd4g7]} f6 {[%emt 0:00:01]} 38. e5 {[%emt 0:01:19]} Nc6 {[%emt 0:00:51]} 39. Qd2 {[%emt 0:00:57]} d4 $2 {[%emt 0:00:38][%mdl 8192]} (39... fxe5 $11 {and Black has nothing to worry.} 40. fxe5 Nd8) 40. exf6 $2 {[%emt 0:00:28]} (40. Ba2+ $1 $18 Kh8 41. exf6) 40... Bc4 $14 {[%emt 0:00:32]} ({Not} 40... gxf6 41. Ba2+ Kg7 42. Be6 $16) 41. fxg7 {[%emt 0:01:01]} Rd8 {[%emt 0:00:30]} 42. Bb4 {[%emt 0:02:49] White is more active. A strong pair of Bishops.} (42. Bb2 $16 {And now Qc2 would win.} b5 43. Be4) 42... Qxg7 {[%emt 0:00:23]} (42... b5 $142 43. Bc5 d3) 43. Be4 {[%emt 0:00:29]} (43. Ba5 $11 Rd5 44. Be4) 43... Nxb4 $15 {[%emt 0:00:24]} 44. Qxb4 {[%emt 0:00:07]} b5 {[%emt 0:00:02] Strongly threatening ...d3.} 45. Qd2 {[%emt 0:01:51]} d3 {[%emt 0:00:09]} 46. Kg2 {[%emt 0:00:15]} Qe7 {[%emt 0:01:30]} 47. f5 {[%emt 0:00:29]} Qf6 {[%emt 0:00:32]} ({Of course not} 47... Rd4 48. Bf3 Qf6 49. Re8+ Kg7 50. Rb8 $11) (47... h6 $5 {[%cal Re7a3]} 48. h4 (48. Qxh6 $2 d2 $19) 48... Qf8 $15) 48. h4 {[%emt 0:00:40]} Kh8 {[%emt 0:00:29] Threatens to win with ...Qd6.} 49. Kh2 {[%emt 0:00:11] [#]} (49. Bf3 $1 $11 {was the only way to keep the balance.}) 49... Qd4 {[%emt 0:00:31]} ({Black should play} 49... Qd6 $1 $17 50. f6 Qxf6) 50. Bg2 {[%emt 0:00:18]} Qf6 {[%emt 0:01:02]} 51. Be4 {[%emt 0:01:16] [#]} (51. Bf3 $11) 51... Qd4 {[%emt 0:00:00]} ({Better is} 51... Qd6 $1 $17 {[%cal Rd6a3]} 52. f6 Qxf6) 52. Bg2 {[%emt 0:00:04]} Qf6 {[%emt 0:00:00]} (52... Qd6 $11) 53. Be4 {[%emt 0:00:06] Weighted Error Value: White=0.31/Black=0.24 (precise)} 1/2-1/2

[Event "3rd VIZAG GM-Open 2022"]
[Site "Visakapatnam"]
[Date "2022.06.13"]
[Round "3.4"]
[White "Savchenko, Boris"]
[Black "Konguvel, Ponnuswamy"]
[Result "0-1"]
[ECO "B53"]
[WhiteElo "2524"]
[BlackElo "2331"]
[Annotator "TA"]
[PlyCount "128"]
[EventDate "2022.06.13"]
[EventType "swiss"]
[EventCountry "IND"]
[SourceTitle "playchess.com"]
[Source "ChessBase"]
[SourceQuality "1"]
[TimeControl "5400+30"]

{[%evp 9,128,15,26,19,21,16,26,20,31,26,34,0,28,25,45,22,19,-22,-41,-43,0,-14,-14,-38,0,0,3,-54,-49,-49,-39,-90,-74,-88,-80,-83,-79,-90,-66,-90,-43,-54,-51,-54,-56,-58,-52,-54,-53,-57,-45,-83,-50,-132,-131,-136,-125,-227,-227,-227,-225,-200,-77,-89,-85,-110,-91,-138,-131,-260,-184,-177,-175,-157,-75,-88,-71,-48,-66,-94,-25,-65,-70,-106,-117,-105,-112,-114,-119,-125,-8,-8,58,-120,-104,-144,-132,-337,-338,-335,-311,-295,-287,-271,-203,-345,-345,-542,-529,-594,-486,-504,-418,-1020,-1016,-986,-945,-873,-836,-835,-753]} 1. e4 {[%emt 0:03:54]} c5 {[%emt 0:00:12]} 2. Nf3 {[%emt 0:00:50]} d6 {[%emt 0:00:29]} 3. d4 {[%emt 0:01:06]} cxd4 {[%emt 0:00:08]} 4. Qxd4 {[%emt 0:00:12]} a6 {[%emt 0:05:23]} 5. Be2 {[%emt 0:02:26]} Nc6 {[%emt 0:00:15]} 6. Qe3 {[%emt 0:00:07] B53: Sicilian: 2...d6: Lines with Qxd4.} Nf6 {[%emt 0:00:18]} 7. c4 {[%emt 0:00:34]} g6 {[%emt 0:02:50]} 8. O-O {[%emt 0:00:40] White has an edge.} Bg7 {[%emt 0:00:04]} 9. Rd1 {[%emt 0:00:53] [#]} Qa5 $146 {[%emt 0:14:48]} ({Predecessor:} 9... O-O 10. Nc3 Nd7 11. Rb1 b6 12. b3 Bb7 13. Bb2 Nc5 14. Nd5 Bxb2 15. Rxb2 e6 {0-1 (36) Shyam,S (2520)-Fedoseev,V (2681) Riga 2019}) 10. Bd2 {[%emt 0:01:10]} Qc5 {[%emt 0:00:37]} (10... Ng4 $5 {[%cal Rg4e3]} 11. Qb3 Qc5 $15) 11. Nc3 {[%emt 0:01:33]} O-O {[%emt 0:01:53]} 12. Qf4 {[%emt 0:14:46]} Ng4 {[%emt 0:05:58]} 13. Be1 {[%emt 0:03:07]} Bxc3 {[%emt 0:07:52]} 14. bxc3 {[%emt 0:00:07]} Nce5 {[%emt 0:01:03]} 15. Nd2 {[%emt 0:14:30]} Nf6 {[%emt 0:00:43]} 16. Rab1 {[%emt 0:01:37]} Rb8 {[%emt 0:02:04]} 17. Nb3 {[%emt 0:04:28]} Qc6 {[%emt 0:03:33]} 18. Rd4 {[%emt 0:14:38]} (18. c5 $11 Qxe4 19. Qxe4 Nxe4 20. f3 Nxc5 21. Nxc5 dxc5 22. Bg3) 18... Be6 $15 {[%emt 0:01:58]} 19. f3 {[%emt 0:03:04]} Qa4 {[%emt 0:07:13]} (19... Nxc4 20. Bxc4 Bxc4 21. Na5 $14) (19... Bxc4 20. Na5 Qc5 21. Nxc4 $11) 20. Qc1 {[%emt 0:13:03]} (20. Qd2 $15) 20... Nc6 $17 {[%emt 0:04:40] Black is much more active.} (20... Bxc4 21. f4 b5 22. fxe5 dxe5 23. Nc5 $16) (20... Qxa2 $6 21. Qd1 $11) 21. Rd2 {[%emt 0:02:51]} Bxc4 {[%emt 0:00:18]} 22. Bd1 {[%emt 0:00:06]} Qb5 {[%emt 0:05:16]} 23. Nd4 {[%emt 0:00:35]} Qg5 {[%emt 0:01:33]} 24. h4 {[%emt 0:01:11]} Qe5 {[%emt 0:03:09]} (24... Qa5 $17 25. Nxc6 bxc6) 25. Rdb2 $15 {[%emt 0:01:18]} Na5 {[%emt 0:03:28]} (25... Nxd4 26. cxd4 Qe6 27. Rxb7 Rxb7 28. Rxb7 $14) 26. Qd2 {[%emt 0:02:50]} d5 {[%emt 0:08:42]} 27. f4 {[%emt 0:00:20]} Qc7 {[%emt 0:01:00]} (27... Qxe4 $2 28. Bc2 Bd3 29. Bxd3 $18) 28. e5 {[%emt 0:00:06]} Ne4 {[%emt 0:01:13]} 29. Qe3 {[%emt 0:00:30]} b5 $36 {[%emt 0:02:32][%mdl 2048] Black is more active.} 30. g4 {[%emt 0:01:33]} Rb6 {[%emt 0:10:00]} 31. a4 {[%emt 0:02:29]} (31. Rg2 $15) 31... Rfb8 $17 {[%emt 0:00:34]} 32. axb5 {[%emt 0:00:48]} Bxb5 {[%emt 0:00:39]} ({Stronger than} 32... axb5 33. Bc2 $15) 33. Rb4 {[%emt 0:01:06]} (33. Nxb5 $17 {was worth a try.} Rxb5 34. Rxb5 axb5 35. Ra1) 33... Nc4 $19 {[%emt 0:00:52] Pair of Knights!} 34. Nxb5 {[%emt 0:00:14]} Rxb5 {[%emt 0:00:57]} ({But not} 34... Nxe3 35. Nxc7 Rxb4 36. cxb4 $18) 35. Qd4 {[%emt 0:00:14]} Qc5 {[%emt 0:00:57]} (35... Na3 $19 {is more deadly.} 36. Rxb5 Nxb5) 36. Qxc5 $17 {[%emt 0:06:31]} Nxc5 {[%emt 0:00:05][%cal Be4c5,Bc5e6,Be6d4][%mdl 32]} 37. Be2 {[%emt 0:00:40]} Ne6 {[%emt 0:03:24]} 38. Bg3 {[%emt 0:00:30]} (38. Rxb5 $142 Rxb5 39. Rxb5 axb5 40. Bg3) 38... Rxb4 {[%emt 0:00:23]} 39. cxb4 {[%emt 0:00:06]} (39. Rxb4 $17 Rxb4 40. cxb4) 39... Nd4 {[%emt 0:00:22]} 40. Bd1 {[%emt 0:00:42]} Nc6 {[%emt 0:00:46]} 41. Be1 {[%emt 0:00:18]} Kf8 {[%emt 0:00:29]} (41... a5 $142 {aiming for ...Ne3.} 42. b5 Nb4) 42. Kf2 {[%emt 0:00:33] Inhibits Ne3.} Ke8 {[%emt 0:00:30]} 43. h5 {[%emt 0:00:58]} Kd7 {[%emt 0:00:21][%cal Og6g5]} 44. Bb3 {[%emt 0:01:35]} Ke6 {[%emt 0:00:33]} (44... e6 $17 45. Bxc4 dxc4) 45. h6 {[%emt 0:00:15]} g5 {[%emt 0:01:48]} 46. fxg5 {[%emt 0:00:15]} N6xe5 {[%emt 0:00:22]} 47. Bc2 {[%emt 0:00:45]} Nxg4+ {[%emt 0:00:16]} 48. Kg3 {[%emt 0:00:05]} f5 {[%emt 0:00:12]} 49. Ra1 {[%emt 0:01:20]} Rb6 {[%emt 0:01:33]} (49... Nd6 $17 {...Rc8 is the strong threat.} 50. Rxa6 Rc8) 50. Bc3 $1 $11 {[%emt 0:00:48][%cal Og5g6] And now g6! would win.} Nce5 {[%emt 0:00:27]} ({Black should play} 50... Nd6 $11 51. g6 Nf6 52. Bxf6 Kxf6 53. gxh7 Rb8) 51. Ba4 $2 {[%emt 0:00:55] [#]} (51. Bd4 $14 {keeps the upper hand.} Rxb4 52. Rxa6+ Kf7 53. Bxe5 Nxe5 54. Bxf5) 51... Kf7 $1 $17 {[%emt 0:00:13][%cal Od5d4]} 52. Rd1 {[%emt 0:00:37]} e6 {[%emt 0:00:21] Threatens to win with ...Nc4.} 53. Kf4 $2 {[%emt 0:00:34] White does not recover from this.} (53. Ra1 $17) 53... Ng6+ $19 {[%emt 0:00:14]} 54. Kf3 {[%emt 0:00:10]} N4e5+ {[%emt 0:00:10]} 55. Ke2 {[%emt 0:00:11]} Rb7 {[%emt 0:00:32]} 56. Ra1 {[%emt 0:00:26]} Rc7 {[%emt 0:00:16]} 57. Bb2 {[%emt 0:00:27]} (57. Bd2 $142) 57... Rc4 {[%emt 0:01:03]} 58. Rc1 {[%emt 0:01:09]} (58. Bd1 {keeps fighting.} Rxb4 59. Bxe5 Nxe5 60. Rxa6) 58... Nf4+ {[%emt 0:01:09]} 59. Kf1 {[%emt 0:00:05]} Nfd3 {[%emt 0:00:35]} 60. Rxc4 {[%emt 0:00:41]} Nxc4 {[%emt 0:00:09]} 61. Be8+ {[%emt 0:00:34]} (61. Bd4 $142 e5 62. Bc5) 61... Kxe8 {[%emt 0:01:00] Black is clearly winning.} 62. g6 {[%emt 0:00:05]} Nce5 {[%emt 0:00:08]} (62... Ncxb2 $2 63. gxh7 Kd7 64. h8=Q $18) 63. gxh7 {[%emt 0:00:09]} Ng6 {[%emt 0:00:14]} 64. Bg7 {[%emt 0:00:34]} Kf7 {[%emt 0:00:14] Weighted Error Value: White=0.35/Black=0.21 (precise)} 0-1